[Event "European Online Club-ch-G 2021"]
[Site "Online"]
[Date "2021.03.27"]
[Round "6.5"]
[White "Flear, Glenn C"]
[Black "Sevdimaliyev, Urfan"]
[Result "1/2-1/2"]
[ECO "D20"]
[WhiteElo "2431"]
[BlackElo "2369"]
[Annotator "NA"]
[PlyCount "127"]
[EventDate "2021.03.27"]
[EventType "team-tourn"]
[EventCountry "NET"]
[SourceTitle "playchess.com"]
[Source "ChessBase"]
[SourceQuality "1"]
[TimeControl "900+5"]

1. d4 {[%emt 0:00:00]} d5 {[%emt 0:00:09]} 2. c4 {[%emt 0:00:04]} dxc4 {[%emt 0:00:08]} 3. e4 {[%emt 0:00:05]} e5 {[%emt 0:00:13]} 4. Nf3 {[%emt 0:00:04]} exd4 {[%emt 0:00:45]} 5. Bxc4 {[%emt 0:00:07]} Bb4+ {[%emt 0:00:21]} 6. Bd2 {[%emt 0:00:03]} Bxd2+ {[%emt 0:00:05]} 7. Nbxd2 {[%emt 0:00:04]} Nc6 {[%emt 0:02:12]} 8. O-O {[%emt 0:00:05]} Nf6 {[%emt 0:00:36]} 9. e5 {[%emt 0:00:37]} Nd5 {[%emt 0:00:29]} 10. Nb3 {[%emt 0:00:26]} O-O {[%emt 0:01:20]} 11. Nbxd4 {[%emt 0:00:43]} Nxd4 {[%emt 0:00:08]} 12. Qxd4 {[%emt 0:01:16]} Be6 {[%emt 0:00:57]} 13. Rad1 {[%emt 0:01:12]} c6 {[%emt 0:00:12]} 14. Qe4 {[%emt 0:00:58]} Qe7 {[%emt 0:00:54]} 15. Nd4 {[%emt 0:00:50]} Nc7 {[%emt 0:00:36]} 16. Nxe6 {[%emt 0:00:50]} fxe6 {[%emt 0:00:30]} 17. Rd6 {[%emt 0:02:06]} Rad8 {[%emt 0:00:41]} 18. Qd4 {[%emt 0:00:15]} a6 {[%emt 0:01:02]} 19. g3 {[%emt 0:01:03]} Nd5 {[%emt 0:00:11]} 20. Rxd8 {[%emt 0:00:05]} Rxd8 {[%emt 0:00:25]} 21. Qg4 {[%emt 0:00:21]} Qf7 {[%emt 0:00:26]} 22. Rd1 {[%emt 0:00:12]} Qf5 {[%emt 0:00:29]} 23. Qxf5 {[%emt 0:00:38]} exf5 {[%emt 0:00:04]} 24. f4 {[%emt 0:00:10]} Kf7 {[%emt 0:00:13]} 25. Bxd5+ {[%emt 0:00:29]} cxd5 {[%emt 0:00:04]} 26. Rc1 {[%emt 0:00:03]} Rd7 {[%emt 0:00:29]} 27. Kf2 {[%emt 0:00:03]} d4 {[%emt 0:00:25]} 28. Ke2 {[%emt 0:00:02]} Ke6 {[%emt 0:00:28]} 29. Kd3 {[%emt 0:00:03]} g5 {[%emt 0:00:13]} 30. Rc4 {[%emt 0:00:16]} gxf4 {[%emt 0:00:02]} 31. gxf4 {[%emt 0:00:02]} Rg7 {[%emt 0:00:13]} 32. Rxd4 {[%emt 0:00:11]} Rg2 {[%emt 0:00:04]} 33. Rd6+ {[%emt 0:00:11]} Ke7 {[%emt 0:00:06]} 34. Rb6 {[%emt 0:00:02]} Rxh2 {[%emt 0:00:10]} 35. Rxb7+ {[%emt 0:00:04]} Ke6 {[%emt 0:00:03]} 36. Rb6+ {[%emt 0:00:23]} Kd5 {[%emt 0:00:04]} 37. Rd6+ {[%emt 0:00:07]} Kc5 {[%emt 0:00:02]} 38. Rxa6 {[%emt 0:00:14]} Rxb2 {[%emt 0:01:04]} 39. a4 {[%emt 0:01:38]} Rb3+ {[%emt 0:00:08]} 40. Ke2 {[%emt 0:00:03]} Kd4 {[%emt 0:00:16]} 41. Rh6 {[%emt 0:00:36]} Ke4 {[%emt 0:00:21]} 42. Rxh7 {[%emt 0:00:37]} Kxf4 {[%emt 0:00:05]} 43. a5 {[%emt 0:00:22]} Ra3 {[%emt 0:00:24]} 44. e6 {[%emt 0:00:08]} Rxa5 {[%emt 0:00:18]} 45. e7 {[%emt 0:00:04]} Re5+ {[%emt 0:00:03]} 46. Kf2 {[%emt 0:00:09]} Kg5 {[%emt 0:00:05]} 47. Kf3 {[%emt 0:00:07]} Kg6 {[%emt 0:00:04]} 48. e8=Q+ {[%emt 0:00:09]} Rxe8 {[%emt 0:00:04]} 49. Ra7 {[%emt 0:00:03]} Rb8 {[%emt 0:00:04]} 50. Ra4 {[%emt 0:00:06]} Rb3+ {[%emt 0:00:03]} 51. Kg2 {[%emt 0:00:03]} Kg5 {[%emt 0:00:03]} 52. Rc4 {[%emt 0:00:03]} f4 {[%emt 0:00:05]} 53. Rc8 {[%emt 0:00:02]} Rb2+ {[%emt 0:00:04]} 54. Kf3 {[%emt 0:00:03]} Rb3+ {[%emt 0:00:02]} 55. Kf2 {[%emt 0:00:02]} Rb2+ {[%emt 0:00:05]} 56. Kf3 {[%emt 0:00:03]} Rb3+ {[%emt 0:00:01]} 57. Kf2 {[%emt 0:00:02]} Ra3 {[%emt 0:00:04]} 58. Kg2 {[%emt 0:00:03]} Kg4 {[%emt 0:00:04]} 59. Rg8+ {[%emt 0:00:04]} Kf5 {[%emt 0:00:02]} 60. Kf2 {[%emt 0:00:04]} Ra2+ {[%emt 0:00:02]} 61. Kf3 {[%emt 0:00:02]} Ra3+ {[%emt 0:00:03]} 62. Kf2 {[%emt 0:00:02]} Ra2+ {[%emt 0:00:02]} 63. Kf3 {[%emt 0:00:02]} Ra3+ {[%emt 0:00:02]} 64. Kf2 {[%emt 0:00:03]} 1/2-1/2

[Event "European Online Club-ch-G 2021"]
[Site "Online"]
[Date "2021.03.27"]
[Round "6.6"]
[White "Babayev, Talib"]
[Black "Boyer, Mahel"]
[Result "0-1"]
[ECO "B01"]
[WhiteElo "2282"]
[BlackElo "2333"]
[Annotator "NA"]
[PlyCount "52"]
[EventDate "2021.03.27"]
[EventType "team-tourn"]
[EventCountry "NET"]
[SourceTitle "playchess.com"]
[Source "ChessBase"]
[SourceQuality "1"]
[TimeControl "900+5"]

1. e4 {[%emt 0:00:00]} Nc6 {[%emt 0:00:02]} 2. Nf3 {[%emt 0:00:05]} d5 {[%emt 0:00:01]} 3. exd5 {[%emt 0:00:03]} Qxd5 {[%emt 0:00:00]} 4. Nc3 {[%emt 0:00:02]} Qh5 {[%emt 0:00:00]} 5. d4 {[%emt 0:00:09]} Bg4 {[%emt 0:00:02]} 6. Be2 {[%emt 0:00:02]} O-O-O {[%emt 0:00:02]} 7. Be3 {[%emt 0:00:10]} e5 {[%emt 0:00:03]} 8. d5 {[%emt 0:00:16]} Nf6 {[%emt 0:00:02]} 9. h3 {[%emt 0:00:09]} Nb4 {[%emt 0:00:02]} 10. O-O {[%emt 0:00:16]} Bxf3 {[%emt 0:00:01]} 11. Bxf3 {[%emt 0:00:02]} Qg6 {[%emt 0:00:00]} 12. a3 {[%emt 0:00:08]} Nxc2 {[%emt 0:00:03]} 13. Rc1 {[%emt 0:00:16]} Nxe3 {[%emt 0:00:02]} 14. fxe3 {[%emt 0:00:02]} e4 {[%emt 0:00:01]} 15. Be2 {[%emt 0:01:04]} Bc5 {[%emt 0:00:03]} 16. Qd2 {[%emt 0:00:11]} Qg3 {[%emt 0:00:02]} 17. Nd1 {[%emt 0:00:06]} Rxd5 {[%emt 0:00:01]} 18. Qc3 {[%emt 0:00:09]} Bd6 {[%emt 0:00:01]} 19. Rxf6 {[%emt 0:00:25]} gxf6 {[%emt 0:00:10]} 20. Bg4+ {[%emt 0:00:10]} Kb8 {[%emt 0:00:02]} 21. Qxf6 {[%emt 0:00:03]} Be5 {[%emt 0:00:18]} 22. Qf5 {[%emt 0:00:25]} Qh2+ {[%emt 0:00:26]} 23. Kf1 {[%emt 0:00:03]} Qh1+ {[%emt 0:00:13]} 24. Ke2 {[%emt 0:00:03]} Rhd8 {[%emt 0:00:09]} 25. Qxe4 {[%emt 0:00:19]} Rd2+ {[%emt 0:00:03]} 26. Kf3 {[%emt 0:00:06]} Qxg2# {[%emt 0:00:01]} 0-1

[Event "European Online Club-ch-G 2021"]
[Site "Online"]
[Date "2021.03.27"]
[Round "6.7"]
[White "Collier, Timothy"]
[Black "Gasimov, Parviz"]
[Result "0-1"]
[ECO "D02"]
[WhiteElo "2074"]
[BlackElo "2337"]
[Annotator "NA"]
[PlyCount "138"]
[EventDate "2021.03.27"]
[EventType "team-tourn"]
[EventCountry "NET"]
[SourceTitle "playchess.com"]
[Source "ChessBase"]
[SourceQuality "1"]
[TimeControl "900+5"]

1. d4 {[%emt 0:00:00]} Nf6 {[%emt 0:00:05]} 2. Bf4 {[%emt 0:00:04]} d5 {[%emt 0:00:08]} 3. e3 {[%emt 0:00:04]} e6 {[%emt 0:00:02]} 4. Nf3 {[%emt 0:00:03]} Bd6 {[%emt 0:00:02]} 5. Nbd2 {[%emt 0:00:06]} O-O {[%emt 0:00:02]} 6. Bd3 {[%emt 0:00:10]} c5 {[%emt 0:00:08]} 7. dxc5 {[%emt 0:00:08]} Bxf4 {[%emt 0:00:28]} 8. exf4 {[%emt 0:00:02]} Qc7 {[%emt 0:00:55]} 9. g3 {[%emt 0:00:04]} Qxc5 {[%emt 0:00:09]} 10. c3 {[%emt 0:00:10]} Nc6 {[%emt 0:00:06]} 11. O-O {[%emt 0:00:15]} Bd7 {[%emt 0:00:26]} 12. Ne5 {[%emt 0:00:11]} Qb6 {[%emt 0:00:40]} 13. Qc2 {[%emt 0:00:38]} g6 {[%emt 0:00:37]} 14. Ndf3 {[%emt 0:00:08]} Rac8 {[%emt 0:00:13]} 15. a3 {[%emt 0:00:17]} Kg7 {[%emt 0:02:43]} 16. Rfe1 {[%emt 0:00:48]} Rfd8 {[%emt 0:01:27]} 17. Nxc6 {[%emt 0:00:52]} bxc6 {[%emt 0:00:26]} 18. Qe2 {[%emt 0:00:24]} c5 {[%emt 0:00:31]} 19. b4 {[%emt 0:00:10]} cxb4 {[%emt 0:01:07]} 20. cxb4 {[%emt 0:00:08]} Rc3 {[%emt 0:00:16]} 21. Ne5 {[%emt 0:00:05]} Rdc8 {[%emt 0:00:11]} 22. g4 {[%emt 0:00:31]} Ba4 {[%emt 0:00:30]} 23. h4 {[%emt 0:01:23]} Qd4 {[%emt 0:01:45]} 24. Ba6 {[%emt 0:01:01]} R8c7 {[%emt 0:00:33]} 25. h5 {[%emt 0:01:05]} Qxf4 {[%emt 0:00:35]} 26. Nd3 {[%emt 0:00:10]} Qxg4+ {[%emt 0:00:54]} 27. Qxg4 {[%emt 0:00:03]} Nxg4 {[%emt 0:00:01]} 28. Nc5 {[%emt 0:00:06]} Be8 {[%emt 0:00:09]} 29. hxg6 {[%emt 0:00:04]} hxg6 {[%emt 0:00:02]} 30. Rec1 {[%emt 0:00:24]} Rxc1+ {[%emt 0:00:09]} 31. Rxc1 {[%emt 0:00:02]} Kh6 {[%emt 0:00:17]} 32. Be2 {[%emt 0:00:23]} Nf6 {[%emt 0:00:15]} 33. Rc3 {[%emt 0:00:06]} Nd7 {[%emt 0:00:11]} 34. Rh3+ {[%emt 0:00:13]} Kg7 {[%emt 0:00:03]} 35. Na6 {[%emt 0:00:30]} Rc1+ {[%emt 0:00:05]} 36. Kg2 {[%emt 0:00:03]} Nb6 {[%emt 0:00:08]} 37. Nc5 {[%emt 0:00:15]} Na4 {[%emt 0:00:20]} 38. Nb3 {[%emt 0:00:34]} Rc3 {[%emt 0:00:10]} 39. Nd4 {[%emt 0:00:16]} Rxh3 {[%emt 0:00:22]} 40. Kxh3 {[%emt 0:00:00]} Nc3 {[%emt 0:00:02]} 41. Bd3 {[%emt 0:00:15]} e5 {[%emt 0:00:07]} 42. Nb3 {[%emt 0:00:03]} e4 {[%emt 0:00:27]} 43. Bc2 {[%emt 0:00:04]} Ba4 {[%emt 0:00:06]} 44. Nd4 {[%emt 0:00:18]} Bxc2 {[%emt 0:00:03]} 45. Nxc2 {[%emt 0:00:02]} Kf6 {[%emt 0:00:10]} 46. Nd4 {[%emt 0:00:08]} a6 {[%emt 0:00:15]} 47. Kg4 {[%emt 0:00:13]} Nb5 {[%emt 0:00:02]} 48. Nb3 {[%emt 0:00:24]} Nxa3 {[%emt 0:00:13]} 49. Nc5 {[%emt 0:00:03]} Nc2 {[%emt 0:00:07]} 50. Nxa6 {[%emt 0:00:03]} d4 {[%emt 0:00:13]} 51. b5 {[%emt 0:00:27]} d3 {[%emt 0:00:03]} 52. Nc5 {[%emt 0:00:02]} Ke5 {[%emt 0:00:07]} 53. Nb3 {[%emt 0:00:21]} Nd4 {[%emt 0:00:07]} 54. b6 {[%emt 0:00:23]} Nc6 {[%emt 0:00:05]} 55. Kg3 {[%emt 0:00:54]} f5 {[%emt 0:00:05]} 56. f4+ {[%emt 0:00:05]} Kd5 {[%emt 0:00:03]} 57. b7 {[%emt 0:00:14]} Nb8 {[%emt 0:00:06]} 58. Kf2 {[%emt 0:00:05]} Kc4 {[%emt 0:00:04]} 59. Nd2+ {[%emt 0:00:05]} Kc5 {[%emt 0:00:06]} 60. Ke3 {[%emt 0:00:07]} Kb6 {[%emt 0:00:04]} 61. Nc4+ {[%emt 0:00:02]} Kxb7 {[%emt 0:00:02]} 62. Ne5 {[%emt 0:00:02]} Nc6 {[%emt 0:00:06]} 63. Nxg6 {[%emt 0:00:01]} Kb6 {[%emt 0:00:09]} 64. Nh4 {[%emt 0:00:21]} Ne7 {[%emt 0:00:02]} 65. Ng2 {[%emt 0:00:08]} Kc5 {[%emt 0:00:03]} 66. Kd2 {[%emt 0:00:05]} Nd5 {[%emt 0:00:11]} 67. Nh4 {[%emt 0:00:11]} Kc4 {[%emt 0:00:04]} 68. Nxf5 {[%emt 0:00:03]} e3+ {[%emt 0:00:01]} 69. Kc1 {[%emt 0:01:59]} Kc3 {[%emt 0:00:03]} 0-1

[Event "European Online Club-ch-G 2021"]
[Site "Online"]
[Date "2021.03.27"]
[Round "6.8"]
[White "Hasanzade, Toghrul"]
[Black "Hmamouche, Youssef"]
[Result "1-0"]
[ECO "B22"]
[WhiteElo "2322"]
[BlackElo "1926"]
[Annotator "NA"]
[PlyCount "127"]
[EventDate "2021.03.27"]
[EventType "team-tourn"]
[EventCountry "NET"]
[SourceTitle "playchess.com"]
[Source "ChessBase"]
[SourceQuality "1"]
[TimeControl "900+5"]

1. e4 {[%emt 0:00:00]} c5 {[%emt 0:00:04]} 2. c3 {[%emt 0:00:03]} d6 {[%emt 0:00:07]} 3. d4 {[%emt 0:00:19]} Nf6 {[%emt 0:00:20]} 4. dxc5 {[%emt 0:00:14]} Nc6 {[%emt 0:00:39]} 5. Bd3 {[%emt 0:00:07]} e6 {[%emt 0:02:18]} 6. cxd6 {[%emt 0:00:07]} Bxd6 {[%emt 0:00:05]} 7. Nf3 {[%emt 0:00:07]} e5 {[%emt 0:00:30]} 8. h3 {[%emt 0:00:14]} h6 {[%emt 0:00:02]} 9. O-O {[%emt 0:00:05]} O-O {[%emt 0:00:04]} 10. Qe2 {[%emt 0:00:06]} Qe7 {[%emt 0:00:26]} 11. Be3 {[%emt 0:00:06]} Be6 {[%emt 0:00:11]} 12. Nbd2 {[%emt 0:00:07]} Rfd8 {[%emt 0:00:27]} 13. Rfd1 {[%emt 0:00:08]} Nd7 {[%emt 0:00:25]} 14. Bc4 {[%emt 0:00:08]} Bc5 {[%emt 0:00:13]} 15. Bxe6 {[%emt 0:00:32]} Qxe6 {[%emt 0:00:09]} 16. Nf1 {[%emt 0:00:24]} Bxe3 {[%emt 0:00:23]} 17. Nxe3 {[%emt 0:00:04]} Nb6 {[%emt 0:00:11]} 18. b3 {[%emt 0:00:09]} Rxd1+ {[%emt 0:00:05]} 19. Rxd1 {[%emt 0:00:03]} Rd8 {[%emt 0:00:14]} 20. c4 {[%emt 0:00:10]} Rxd1+ {[%emt 0:01:29]} 21. Qxd1 {[%emt 0:00:03]} Nd7 {[%emt 0:00:51]} 22. Qd5 {[%emt 0:00:09]} Qe8 {[%emt 0:00:30]} 23. Nf5 {[%emt 0:00:13]} Ne7 {[%emt 0:00:55]} 24. Nxe7+ {[%emt 0:00:12]} Qxe7 {[%emt 0:00:01]} 25. Qxb7 {[%emt 0:00:02]} Qd6 {[%emt 0:00:08]} 26. Qd5 {[%emt 0:00:08]} Qc7 {[%emt 0:00:07]} 27. Nd2 {[%emt 0:01:08]} Nf6 {[%emt 0:00:07]} 28. Qd3 {[%emt 0:00:10]} Qa5 {[%emt 0:00:07]} 29. Qc2 {[%emt 0:00:37]} Qc5 {[%emt 0:00:13]} 30. Qc3 {[%emt 0:00:22]} a5 {[%emt 0:00:57]} 31. a3 {[%emt 0:00:05]} Qxa3 {[%emt 0:01:29]} 32. c5 {[%emt 0:00:05]} Qb4 {[%emt 0:00:35]} 33. Qxb4 {[%emt 0:00:19]} axb4 {[%emt 0:00:02]} 34. c6 {[%emt 0:00:11]} Ne8 {[%emt 0:00:02]} 35. Nc4 {[%emt 0:00:03]} Kf8 {[%emt 0:00:07]} 36. Nxe5 {[%emt 0:00:07]} Ke7 {[%emt 0:00:08]} 37. Kf1 {[%emt 0:00:19]} Kd6 {[%emt 0:00:32]} 38. Nxf7+ {[%emt 0:00:19]} Kxc6 {[%emt 0:00:04]} 39. Ke2 {[%emt 0:00:09]} Kc5 {[%emt 0:00:01]} 40. Kd3 {[%emt 0:00:08]} Nf6 {[%emt 0:00:07]} 41. Ne5 {[%emt 0:00:21]} Ne8 {[%emt 0:00:29]} 42. Nc4 {[%emt 0:00:15]} Nc7 {[%emt 0:00:08]} 43. f4 {[%emt 0:00:09]} Nb5 {[%emt 0:00:08]} 44. Ne5 {[%emt 0:00:21]} Nd6 {[%emt 0:00:27]} 45. Nd7+ {[%emt 0:00:16]} Kc6 {[%emt 0:00:06]} 46. Nf8 {[%emt 0:00:15]} Nf7 {[%emt 0:00:45]} 47. Kc4 {[%emt 0:00:09]} Nd6+ {[%emt 0:00:04]} 48. Kd4 {[%emt 0:00:06]} Nb5+ {[%emt 0:00:02]} 49. Kd3 {[%emt 0:00:16]} Nc7 {[%emt 0:00:18]} 50. Kc4 {[%emt 0:00:07]} g5 {[%emt 0:00:21]} 51. fxg5 {[%emt 0:00:07]} hxg5 {[%emt 0:00:01]} 52. Kxb4 {[%emt 0:00:02]} Kd6 {[%emt 0:00:02]} 53. Kc4 {[%emt 0:00:06]} Ke5 {[%emt 0:00:03]} 54. Kd3 {[%emt 0:00:07]} Kf4 {[%emt 0:00:11]} 55. b4 {[%emt 0:00:36]} Ke5 {[%emt 0:00:44]} 56. Nd7+ {[%emt 0:00:22]} Kd6 {[%emt 0:00:04]} 57. Nc5 {[%emt 0:00:06]} Ke5 {[%emt 0:00:01]} 58. Kc4 {[%emt 0:00:04]} Ne8 {[%emt 0:00:17]} 59. b5 {[%emt 0:00:06]} Nd6+ {[%emt 0:00:01]} 60. Kb4 {[%emt 0:00:03]} Kd4 {[%emt 0:00:02]} 61. b6 {[%emt 0:00:06]} Ke5 {[%emt 0:00:11]} 62. Kc3 {[%emt 0:00:10]} Nb5+ {[%emt 0:00:06]} 63. Kd3 {[%emt 0:00:03]} Nd6 {[%emt 0:00:02]} 64. b7 {[%emt 0:00:03]} 1-0

[Event "European Online Club-ch-G 2021"]
[Site "Online"]
[Date "2021.03.27"]
[Round "6.9"]
[White "Grachev, Boris"]
[Black "Persanyi, Barnabas"]
[Result "1-0"]
[ECO "E12"]
[WhiteElo "2619"]
[BlackElo "2364"]
[Annotator "ChessBase"]
[PlyCount "91"]
[EventDate "2021.03.27"]
[EventType "team-tourn"]
[EventCountry "NET"]
[SourceTitle "playchess.com"]
[Source "ChessBase"]
[SourceQuality "1"]
[TimeControl "900+5"]

1. Nf3 {[%emt 0:00:00]} Nf6 {[%emt 0:00:06]} 2. c4 {[%emt 0:00:18]} b6 {[%emt 0:00:05]} 3. d4 {[%emt 0:00:12]} e6 {[%emt 0:00:03]} 4. Bf4 {[%emt 0:00:02]} Bb7 {[%emt 0:00:15]} 5. e3 {[%emt 0:00:03]} Bb4+ {[%emt 0:00:31]} 6. Nfd2 {[%emt 0:00:04]} Ne4 {[%emt 0:00:53]} 7. a3 {[%emt 0:00:16]} Be7 {[%emt 0:00:28]} 8. Nxe4 {[%emt 0:00:07]} Bxe4 {[%emt 0:00:03]} 9. Nc3 {[%emt 0:00:08]} Bb7 {[%emt 0:00:08]} 10. Bd3 {[%emt 0:00:32]} d6 {[%emt 0:00:31]} 11. O-O {[%emt 0:00:44]} Nd7 {[%emt 0:00:07]} 12. Bg3 {[%emt 0:00:36]} O-O {[%emt 0:00:28]} 13. Rc1 {[%emt 0:00:36]} g6 {[%emt 0:00:55]} 14. Be4 {[%emt 0:00:46]} Bxe4 {[%emt 0:01:17]} 15. Nxe4 {[%emt 0:00:02]} Nf6 {[%emt 0:02:12]} 16. Nc3 {[%emt 0:00:08]} Nh5 {[%emt 0:01:11]} 17. b4 {[%emt 0:00:14]} Nxg3 {[%emt 0:00:07]} 18. hxg3 {[%emt 0:00:05]} c6 {[%emt 0:00:58]} 19. Qb3 {[%emt 0:01:36]} d5 {[%emt 0:00:24]} 20. a4 {[%emt 0:00:24]} Rc8 {[%emt 0:00:34]} 21. Ne2 {[%emt 0:00:28]} Qd7 {[%emt 0:00:29]} 22. Nf4 {[%emt 0:00:15]} Bd6 {[%emt 0:00:36]} 23. Nd3 {[%emt 0:00:03]} h5 {[%emt 0:01:05]} 24. Rc2 {[%emt 0:00:27]} a5 {[%emt 0:01:03]} 25. c5 {[%emt 0:00:56]} Bc7 {[%emt 0:00:11]} 26. cxb6 {[%emt 0:00:40]} Bxb6 {[%emt 0:00:03]} 27. Ne5 {[%emt 0:00:02]} Qd6 {[%emt 0:00:26]} 28. bxa5 {[%emt 0:00:21]} Bxa5 {[%emt 0:00:03]} 29. Rfc1 {[%emt 0:00:05]} Kg7 {[%emt 0:01:07]} 30. Rxc6 {[%emt 0:00:10]} Rxc6 {[%emt 0:00:06]} 31. Rxc6 {[%emt 0:00:03]} Qb8 {[%emt 0:00:17]} 32. Qc2 {[%emt 0:00:40]} Qb4 {[%emt 0:00:14]} 33. Nd3 {[%emt 0:00:19]} Qb7 {[%emt 0:00:07]} 34. Rc5 {[%emt 0:00:34]} Bb6 {[%emt 0:00:05]} 35. Rb5 {[%emt 0:00:16]} Qa6 {[%emt 0:00:05]} 36. Nb4 {[%emt 0:00:31]} Qa7 {[%emt 0:00:06]} 37. a5 {[%emt 0:00:31]} Bc7 {[%emt 0:00:32]} 38. Qc5 {[%emt 0:00:37]} Qxc5 {[%emt 0:00:02]} 39. dxc5 {[%emt 0:00:02]} Ra8 {[%emt 0:00:01]} 40. a6 {[%emt 0:00:08]} Be5 {[%emt 0:00:02]} 41. c6 {[%emt 0:00:16]} Kf8 {[%emt 0:00:06]} 42. Rb7 {[%emt 0:00:17]} Bd6 {[%emt 0:00:10]} 43. a7 {[%emt 0:00:18]} Ke8 {[%emt 0:00:09]} 44. Na6 {[%emt 0:00:24]} Kd8 {[%emt 0:00:08]} 45. c7+ {[%emt 0:00:29]} Bxc7 {[%emt 0:00:04]} 46. Rxc7 {[%emt 0:00:04]} 1-0

[Event "European Online Club-ch-G 2021"]
[Site "Online"]
[Date "2021.03.27"]
[Round "6.10"]
[White "Krstulovic, Alex"]
[Black "Motylev, Alexander"]
[Result "0-1"]
[ECO "D02"]
[WhiteElo "2387"]
[BlackElo "2641"]
[Annotator "ChessBase"]
[PlyCount "108"]
[EventDate "2021.03.27"]
[EventType "team-tourn"]
[EventCountry "NET"]
[SourceTitle "playchess.com"]
[Source "ChessBase"]
[SourceQuality "1"]
[TimeControl "900+5"]

1. d4 {[%emt 0:00:00]} Nf6 {[%emt 0:00:11]} 2. Nf3 {[%emt 0:00:06]} d5 {[%emt 0:00:03]} 3. Bf4 {[%emt 0:00:03]} c5 {[%emt 0:00:19]} 4. e3 {[%emt 0:00:03]} Nc6 {[%emt 0:00:02]} 5. Nbd2 {[%emt 0:00:02]} e6 {[%emt 0:00:04]} 6. c3 {[%emt 0:00:04]} Nh5 {[%emt 0:00:22]} 7. Bg5 {[%emt 0:00:59]} f6 {[%emt 0:00:03]} 8. Bh4 {[%emt 0:00:03]} g6 {[%emt 0:00:06]} 9. Bd3 {[%emt 0:00:49]} cxd4 {[%emt 0:00:28]} 10. cxd4 {[%emt 0:00:29]} Be7 {[%emt 0:00:02]} 11. O-O {[%emt 0:00:15]} O-O {[%emt 0:00:02]} 12. Rc1 {[%emt 0:00:05]} Bd7 {[%emt 0:00:13]} 13. Nb3 {[%emt 0:00:14]} Nb4 {[%emt 0:00:06]} 14. Bb1 {[%emt 0:00:03]} Ba4 {[%emt 0:00:15]} 15. a3 {[%emt 0:00:45]} Nc6 {[%emt 0:00:02]} 16. Qd3 {[%emt 0:00:06]} Qb6 {[%emt 0:00:18]} 17. Nc5 {[%emt 0:00:43]} Bxc5 {[%emt 0:00:32]} 18. Rxc5 {[%emt 0:00:24]} Qxb2 {[%emt 0:00:03]} 19. Bc2 {[%emt 0:02:07]} Bxc2 {[%emt 0:00:13]} 20. Rxc2 {[%emt 0:00:00]} Qb6 {[%emt 0:00:02]} 21. Rc5 {[%emt 0:00:39]} Rac8 {[%emt 0:00:44]} 22. Rb1 {[%emt 0:00:04]} Qc7 {[%emt 0:00:03]} 23. g4 {[%emt 0:00:15]} Ng7 {[%emt 0:00:04]} 24. Bg3 {[%emt 0:00:02]} Qd7 {[%emt 0:00:13]} 25. Rbc1 {[%emt 0:01:00]} Ne8 {[%emt 0:01:49]} 26. Qb1 {[%emt 0:00:57]} g5 {[%emt 0:02:54]} 27. e4 {[%emt 0:01:45]} dxe4 {[%emt 0:01:39]} 28. Qxe4 {[%emt 0:00:00]} Nd6 {[%emt 0:00:03]} 29. Qe3 {[%emt 0:00:16]} Nf7 {[%emt 0:02:30]} 30. h4 {[%emt 0:00:36]} gxh4 {[%emt 0:00:23]} 31. Bxh4 {[%emt 0:01:00]} Nh8 {[%emt 0:00:02]} 32. g5 {[%emt 0:00:55]} f5 {[%emt 0:00:11]} 33. Re1 {[%emt 0:00:20]} Ng6 {[%emt 0:00:20]} 34. Rc4 {[%emt 0:01:17]} Rce8 {[%emt 0:00:15]} 35. Ne5 {[%emt 0:01:21]} Ncxe5 {[%emt 0:00:52]} 36. dxe5 {[%emt 0:00:00]} f4 {[%emt 0:00:03]} 37. Qh3 {[%emt 0:00:04]} Rf5 {[%emt 0:00:02]} 38. Rec1 {[%emt 0:00:09]} Nxe5 {[%emt 0:00:16]} 39. Rc7 {[%emt 0:00:02]} Qd5 {[%emt 0:00:01]} 40. R1c3 {[%emt 0:00:07]} Qd1+ {[%emt 0:00:30]} 41. Kh2 {[%emt 0:00:08]} Qd5 {[%emt 0:00:46]} 42. Bg3 {[%emt 0:00:06]} fxg3+ {[%emt 0:00:10]} 43. Rxg3 {[%emt 0:00:01]} Rxf2+ {[%emt 0:00:44]} 44. Kg1 {[%emt 0:00:01]} Rf7 {[%emt 0:00:06]} 45. Rxf7 {[%emt 0:00:08]} Nxf7 {[%emt 0:00:02]} 46. g6 {[%emt 0:00:01]} Qd1+ {[%emt 0:00:09]} 47. Kh2 {[%emt 0:00:03]} Qd2+ {[%emt 0:00:04]} 48. Kh1 {[%emt 0:00:12]} hxg6 {[%emt 0:00:08]} 49. Rxg6+ {[%emt 0:00:00]} Kf8 {[%emt 0:00:02]} 50. Qh7 {[%emt 0:00:04]} Qd5+ {[%emt 0:00:13]} 51. Kh2 {[%emt 0:00:03]} Qe5+ {[%emt 0:00:02]} 52. Kh1 {[%emt 0:00:01]} Qh8 {[%emt 0:00:09]} 53. Qxh8+ {[%emt 0:00:11]} Nxh8 {[%emt 0:00:02]} 54. Rg8+ {[%emt 0:00:00]} Kxg8 {[%emt 0:00:02]} 0-1

[Event "European Online Club-ch-G 2021"]
[Site "Online"]
[Date "2021.03.27"]
[Round "6.11"]
[White "Kobalia, Mikhail"]
[Black "Karacsonyi, Gellert"]
[Result "1-0"]
[ECO "C00"]
[WhiteElo "2587"]
[BlackElo "2321"]
[Annotator "ChessBase"]
[PlyCount "79"]
[EventDate "2021.03.27"]
[EventType "team-tourn"]
[EventCountry "NET"]
[SourceTitle "playchess.com"]
[Source "ChessBase"]
[SourceQuality "1"]
[TimeControl "900+5"]

1. e4 {[%emt 0:00:00]} e6 {[%emt 0:00:03]} 2. d3 {[%emt 0:00:06]} d5 {[%emt 0:00:01]} 3. Nd2 {[%emt 0:00:03]} c5 {[%emt 0:00:05]} 4. Ngf3 {[%emt 0:00:03]} Nc6 {[%emt 0:00:03]} 5. g3 {[%emt 0:00:02]} Nf6 {[%emt 0:00:05]} 6. Bg2 {[%emt 0:00:02]} Be7 {[%emt 0:00:02]} 7. O-O {[%emt 0:00:02]} O-O {[%emt 0:00:02]} 8. Re1 {[%emt 0:00:01]} b5 {[%emt 0:00:24]} 9. a4 {[%emt 0:00:04]} b4 {[%emt 0:00:09]} 10. exd5 {[%emt 0:00:03]} exd5 {[%emt 0:00:08]} 11. d4 {[%emt 0:00:03]} cxd4 {[%emt 0:01:51]} 12. Nb3 {[%emt 0:00:06]} Bg4 {[%emt 0:00:26]} 13. Nbxd4 {[%emt 0:03:27]} Nxd4 {[%emt 0:00:36]} 14. Qxd4 {[%emt 0:00:03]} Ne4 {[%emt 0:00:33]} 15. Qd3 {[%emt 0:00:36]} Bf5 {[%emt 0:01:56]} 16. Nd4 {[%emt 0:00:10]} Bc5 {[%emt 0:03:17]} 17. Nxf5 {[%emt 0:01:19]} Bxf2+ {[%emt 0:00:26]} 18. Kf1 {[%emt 0:00:05]} Bxe1 {[%emt 0:00:08]} 19. Bxe4 {[%emt 0:00:51]} dxe4 {[%emt 0:01:03]} 20. Qxd8 {[%emt 0:00:45]} Rfxd8 {[%emt 0:00:23]} 21. Kxe1 {[%emt 0:00:03]} g6 {[%emt 0:00:02]} 22. Ne3 {[%emt 0:00:11]} f5 {[%emt 0:00:08]} 23. a5 {[%emt 0:00:12]} Kf7 {[%emt 0:00:55]} 24. a6 {[%emt 0:00:09]} Rac8 {[%emt 0:00:16]} 25. b3 {[%emt 0:00:28]} Ke6 {[%emt 0:00:49]} 26. Nc4 {[%emt 0:00:20]} Rc6 {[%emt 0:00:11]} 27. Be3 {[%emt 0:00:07]} Rd7 {[%emt 0:00:50]} 28. h4 {[%emt 0:00:04]} Rd8 {[%emt 0:00:12]} 29. Bxa7 {[%emt 0:00:16]} Ra8 {[%emt 0:00:02]} 30. Bb6 {[%emt 0:00:02]} h6 {[%emt 0:00:13]} 31. a7 {[%emt 0:00:05]} g5 {[%emt 0:00:02]} 32. hxg5 {[%emt 0:00:06]} hxg5 {[%emt 0:00:00]} 33. Be3 {[%emt 0:00:02]} Rc7 {[%emt 0:00:41]} 34. Ra6+ {[%emt 0:01:03]} Kf7 {[%emt 0:00:04]} 35. Nd6+ {[%emt 0:00:40]} Kf8 {[%emt 0:00:40]} 36. Nxf5 {[%emt 0:00:05]} Rxc2 {[%emt 0:00:07]} 37. Rb6 {[%emt 0:00:07]} Rcc8 {[%emt 0:00:23]} 38. Rb7 {[%emt 0:00:06]} g4 {[%emt 0:00:08]} 39. Bh6+ {[%emt 0:00:06]} Kg8 {[%emt 0:00:25]} 40. Ne7+ {[%emt 0:00:03]} 1-0